bitfinex-derivatives/quotes_BNBF0:USTF0_20250305
["timestamp","ask_amount","ask_price","bid_price","bid_amount"]
[1741215798559,0.96761809,598.16,597.28,0.50485132]
[1741215798958,0.96761809,598.15,597.28,0.50485132]
[1741215799158,0.96761809,598.14,597.28,0.50485132]
[1741215799361,0.96761809,598.13,597.28,0.50485132]
[1741215799561,0.96761809,598.14,597.28,0.50485132]
[1741215799758,2.17108194,598.13,597.28,0.50485132]
[1741215799952,0.96761809,598.12,597.28,0.50485132]
[1741215800157,1.20346385,598.13,597.28,0.50485132]
[1741215800354,0.29114761,598.24,597.28,0.50485132]
[1741215800355,4.22128472,598.17,597.28,0.50485132]
[1741215800560,3.01782087,598.16,597.28,0.50485132]
[1741215800758,3.71956301,598.15,597.28,0.50485132]
[1741215801063,3.01782087,598.14,597.28,0.50485132]
[1741215801357,2.51609916,598.13,597.28,0.50485132]
[1741215801576,2.17108194,598.12,597.28,0.50485132]
[1741215801753,0.96761809,598.11,597.28,0.50485132]
[1741215801956,2.17108194,598.1,597.28,0.50485132]
[1741215802157,0.96761809,598.09,597.28,0.50485132]
[1741215802359,0.96761809,598.08,597.28,0.50485132]
[1741215802558,0.96761809,598.07,597.28,0.50485132]
[1741215802859,2.17108194,598.07,597.28,0.50485132]
[1741215803061,0.96761809,598.06,597.28,0.50485132]
[1741215803459,1.059,598.07,597.28,0.50485132]
[1741215804059,0.96761809,598.06,597.28,0.50485132]
[1741215804259,1.059,598.07,597.28,0.50485132]
[1741215806667,0.96761809,598.06,597.28,0.50485132]
[1741215806861,0.96761809,598.05,597.28,0.50485132]
[1741215807064,0.96643891,598.05,597.28,0.50485132]
[1741215807563,2.16990276,598.06,597.28,0.50485132]
[1741215808560,0.96643891,598.06,597.28,0.50485132]
[1741215808767,1.059,598.07,597.28,0.50485132]
[1741215809158,2.26246385,598.07,597.28,0.50485132]
[1741215809360,0.96643891,598.06,597.28,0.50485132]
[1741215809864,3.22890276,598.07,597.28,0.50485132]
[1741215810172,2.51274117,598.06,597.28,0.50485132]
[1741215810365,2.16990276,598.05,597.28,0.50485132]
[1741215810565,0.96643891,598.04,597.28,0.50485132]
[1741215810864,1.20346385,598.05,597.28,0.50485132]
[1741215811268,0.96646122,598.06,597.28,0.50485132]
[1741215811475,1.059,598.07,597.28,0.50485132]
[1741215817368,1.059,598.07,597.32,1.24869901]
[1741215818874,1.059,598.07,597.33,1.24869901]
[1741215820977,1.059,598.07,597.36,1.24869901]
[1741215822672,1.059,598.07,597.37,0.17]
[1741215823375,1.059,598.07,597.39,1.24869901]
[1741215825672,1.059,598.07,597.43,1.24869901]
[1741215829569,1.059,598.07,597.44,1.24869901]
[1741215831271,1.059,598.07,597.42,1.24869901]
[1741215832974,1.059,598.07,597.43,1.24869901]
[1741215834376,1.059,598.07,597.39,1.24869901]
[1741215836584,1.059,598.07,597.38,0.29111473]
[1741215837982,1.059,598.07,597.37,0.17]
[1741215838192,1.059,598.07,597.38,1.53981739]
[1741215840586,1.059,598.07,597.39,1.24869901]
[1741215842586,2.02639883,598.07,597.39,1.24869901]
[1741215842891,2.02639883,598.07,597.38,0.29111473]
[1741215842892,1.059,598.07,597.4,1.24869901]
[1741215843088,0.96739883,598.06,597.4,1.24869901]
[1741215843490,0.96739883,598.05,597.4,1.24869901]
[1741215843989,0.95931777,598.05,597.4,1.24869901]
[1741215844189,1.54836861,598.2,597.37,0.17]
[1741215844190,2.05010695,598.19,597.44,1.24869901]
[1741215844393,1.54836861,598.18,597.44,1.24869901]
[1741215844691,1.54836861,598.17,597.44,1.24869901]
[1741215844996,1.54836861,598.16,597.44,1.24869901]
[1741215845184,2.75183246,598.15,597.44,1.24869901]
[1741215845389,1.54836861,598.14,597.44,1.24869901]
[1741215845591,2.75183246,598.13,597.44,1.24869901]
[1741215845794,1.20346385,598.13,597.44,1.24869901]
[1741215846121,2.75183246,598.12,597.44,1.24869901]
[1741215846308,1.20346385,598.12,597.44,1.24869901]
[1741215846493,1.54836861,598.11,597.44,1.24869901]
[1741215846693,2.47436861,598.11,597.44,1.24869901]
[1741215846893,1.20346385,598.1,597.44,1.24869901]
[1741215847089,1.54836861,598.09,597.44,1.24869901]
[1741215847287,1.20346385,598.08,597.44,1.24869901]
[1741215847492,2.75183246,598.08,597.39,1.24869901]
[1741215847697,1.20346385,598.08,597.39,1.24869901]
[1741215847898,1.20346385,598.07,597.39,1.24869901]
[1741215848208,1.54836861,598.06,597.39,1.24869901]
[1741215848396,1.20346385,598.05,597.39,1.24869901]
[1741215848693,1.20346385,598.04,597.39,1.24869901]
[1741215849194,1.20346385,598.03,597.4,0.17]
[1741215849698,1.20346385,598.02,597.4,0.17]
[1741215849898,1.54836861,598.01,597.4,0.17]
[1741215850195,1.54836861,598.0,597.4,0.17]
[1741215850397,1.54836861,597.99,597.4,0.17]
[1741215850595,1.54836861,597.98,597.4,0.17]
[1741215850795,1.54836861,597.99,597.4,0.17]
[1741215851095,0.29125239,597.97,597.4,0.17]
[1741215851293,1.54836861,597.96,597.4,0.17]
[1741215851493,1.20346385,597.96,597.4,0.17]
[1741215851697,1.20346385,597.95,597.4,0.17]
[1741215852090,2.75183246,597.94,597.4,0.17]
[1741215852296,1.20346385,597.94,597.4,0.17]
[1741215852503,1.54836861,597.96,597.4,0.17]
[1741215852504,1.20346385,597.93,597.4,0.17]
[1741215853099,1.20346385,597.92,597.4,0.17]
[1741215853301,1.20346385,597.91,597.4,0.17]
[1741215853807,0.71489327,598.63,597.4,0.17]
[1741215853808,2.75183246,598.02,597.4,0.17]
[1741215854001,1.20346385,598.02,597.4,0.17]
[1741215854699,1.20346385,598.01,597.4,0.17]
[1741215855203,1.20346385,598.0,597.4,0.17]
[1741215855795,2.16952026,597.99,597.4,0.17]
[1741215855999,0.96605641,597.98,597.4,0.17]
[1741215856199,0.96601975,597.97,597.4,0.17]
[1741215856404,0.96601975,597.96,597.4,0.17]
[1741215856700,0.96601975,597.97,597.4,0.17]
[1741215856903,2.1694836,597.97,597.4,0.17]
[1741215857102,0.96601975,597.96,597.4,0.17]
[1741215857401,2.1694836,597.96,597.4,0.17]
[1741215857600,0.96601975,597.95,597.4,0.17]
[1741215857798,1.20346385,597.96,597.4,0.17]
[1741215858108,2.51165136,597.98,597.4,0.17]
[1741215858301,0.96601975,597.97,597.4,0.17]
[1741215858502,2.1694836,597.96,597.4,0.17]
[1741215858696,0.96601975,597.95,597.4,0.17]
[1741215858910,0.96601975,597.94,597.4,0.17]
[1741215859207,2.1694836,597.93,597.4,0.17]
[1741215859401,2.1694836,597.92,597.4,0.17]
[1741215859603,0.96601975,597.91,597.4,0.17]
[1741215860110,3.01356685,597.99,597.4,0.17]
[1741215860406,1.20346385,597.98,597.4,0.17]
[1741215860702,2.1694836,597.98,597.4,0.17]
[1741215861002,0.96601975,597.97,597.4,0.17]
[1741215861205,4.2170307,598.01,597.4,0.17]
[1741215861404,3.01356685,598.0,597.4,0.17]
[1741215861605,2.51165136,597.99,597.4,0.17]
[1741215861901,1.20443247,597.98,597.4,0.17]
[1741215862099,2.17045222,597.98,597.4,0.17]
[1741215862303,0.96601975,597.97,597.4,0.17]
[1741215862812,0.96601975,598.03,597.4,0.17]
[1741215863105,1.20443247,598.04,597.4,0.17]
[1741215863505,0.29123289,598.05,597.4,0.17]
[1741215864898,0.96601975,598.06,597.4,0.17]
[1741215865100,3.01351449,598.07,597.4,0.17]
[1741215865299,0.96601975,598.06,597.4,0.17]
[1741215865503,0.96601975,598.05,597.4,0.17]
[1741215865699,0.96601975,598.04,597.4,0.17]
[1741215866005,1.20443247,598.05,597.4,0.17]
[1741215866006,0.96601975,598.03,597.4,0.17]
[1741215866202,2.17045222,598.04,597.4,0.17]
[1741215866403,0.96601975,598.03,597.4,0.17]
[1741215867105,0.96601975,598.02,597.4,0.17]
[1741215867298,0.96601975,598.01,597.4,0.17]
[1741215867705,0.96601975,598.0,597.4,0.17]
[1741215867904,2.17045222,598.01,597.4,0.17]
[1741215868101,0.96601975,598.0,597.4,0.17]
[1741215868605,3.01351449,598.05,597.4,0.17]
[1741215868802,0.96601975,598.04,597.4,0.17]
[1741215869014,0.96601975,598.03,597.4,0.17]
[1741215869205,0.96601975,598.02,597.4,0.17]
[1741215869405,0.96601975,598.01,597.4,0.17]
[1741215869608,0.96601975,598.0,597.4,0.17]
[1741215869828,0.96601975,597.99,597.4,0.17]
[1741215870008,0.96601975,598.0,597.4,0.17]
[1741215870404,2.17045222,598.0,597.4,0.17]
[1741215870614,0.96601975,597.99,597.4,0.17]
[1741215870805,0.96483008,597.99,597.4,0.17]
[1741215871201,0.96483008,598.05,597.4,0.17]
[1741215871408,0.96483008,598.04,597.4,0.17]
[1741215871607,0.96483008,598.05,597.4,0.17]
[1741215871808,1.20443247,598.03,597.4,0.17]
[1741215872504,0.96483008,598.03,597.4,0.17]
[1741215872718,0.29123289,598.06,597.4,0.17]
[1741215873911,1.20443247,598.08,597.4,0.17]
[1741215874112,2.16909308,598.08,597.4,0.17]
[1741215874508,0.96466061,598.07,597.4,0.17]
[1741215875110,0.29123045,598.06,597.4,0.17]
[1741215876112,1.25592787,598.06,597.4,0.17]
[1741215876412,1.27212099,598.05,597.4,0.17]
[1741215876611,0.96469742,598.04,597.4,0.17]
[1741215876817,0.96469742,598.03,597.4,0.17]
[1741215877012,0.96469742,598.02,597.4,0.17]
[1741215877207,0.96469742,598.03,597.4,0.17]
[1741215877515,0.99778105,598.09,597.4,0.17]
[1741215877516,2.16912989,598.02,597.4,0.17]
[1741215877713,0.96469742,598.01,597.4,0.17]
[1741215877910,1.20443247,598.02,597.4,0.17]
[1741215878110,0.29123045,598.0,597.4,0.17]
[1741215882911,3.00998789,598.09,597.4,0.17]
[1741215883119,0.29121339,598.01,597.4,0.17]
[1741215883415,2.16908846,598.07,597.4,0.17]
[1741215883611,0.96465599,598.06,597.4,0.17]
[1741215883812,0.96465599,598.05,597.4,0.17]
[1741215884017,2.50810558,598.05,597.4,0.17]
[1741215884212,1.49563611,598.04,597.4,0.17]
[1741215884409,2.4602921,598.04,597.4,0.17]
[1741215884613,0.96465599,598.03,597.4,0.17]
[1741215885117,0.29120364,598.04,597.4,0.17]
[1741215885919,3.00998789,598.06,597.4,0.17]
[1741215886112,0.96465599,598.05,597.4,0.17]
[1741215886312,1.20443247,598.05,597.4,0.17]
[1741215886515,2.16908846,598.05,597.4,0.17]
[1741215886716,0.96465599,598.04,597.4,0.17]
[1741215887116,0.29120364,598.03,597.4,0.17]
[1741215888919,1.20443247,598.04,597.4,0.17]
[1741215889218,1.54344959,598.1,597.4,0.17]
[1741215889219,2.16908846,598.09,597.4,0.17]
[1741215889419,0.96521567,598.08,597.4,0.17]
[1741215889620,0.96521567,598.07,597.4,0.17]
[1741215889818,2.16964814,598.08,597.4,0.17]
[1741215890018,0.96521567,598.07,597.4,0.17]
[1741215890218,2.16964814,598.08,597.4,0.17]
[1741215890418,0.96521567,598.07,597.4,0.17]
[1741215890615,4.21584883,598.09,597.4,0.17]
[1741215890818,3.01141636,598.08,597.4,0.17]
[1741215891120,1.20443247,598.07,597.4,0.17]
[1741215891420,2.16964814,598.07,597.4,0.17]
[1741215891616,0.96521567,598.06,597.4,0.17]
[1741215891813,2.50956074,598.08,597.4,0.17]
[1741215892015,0.96521567,598.08,597.4,0.17]
[1741215892517,0.96521567,598.07,597.4,0.17]
[1741215892719,0.96521567,598.06,597.4,0.17]
[1741215892922,1.20443247,598.07,597.4,0.17]
[1741215893119,2.16964814,598.09,597.4,0.17]
[1741215893425,0.96521567,598.08,597.4,0.17]
[1741215893715,2.16964814,598.08,597.4,0.17]
[1741215893922,0.96521567,598.07,597.4,0.17]
[1741215894516,3.01137824,598.08,597.4,0.17]
[1741215894721,2.50956074,598.07,597.4,0.17]
[1741215895117,0.96521567,598.07,597.4,0.17]
[1741215895318,1.20443247,598.06,597.4,0.17]
[1741215895717,2.17027562,598.1,597.4,0.17]
[1741215895925,0.96584315,598.09,597.4,0.17]
[1741215896122,0.96584315,598.08,597.4,0.17]
[1741215896321,0.96584315,598.07,597.4,0.17]
[1741215896518,0.96584315,598.06,597.4,0.17]
[1741215896722,0.96584315,598.05,597.4,0.17]
[1741215896924,0.96584315,598.08,597.4,0.17]
[1741215897124,2.17027562,598.07,597.4,0.17]
[1741215897318,0.96584315,598.06,597.4,0.17]
[1741215897521,0.96584315,598.05,597.4,0.17]
[1741215897821,0.96584315,598.04,597.4,0.17]
[1741215898420,2.17027562,598.13,597.4,0.17]
[1741215898621,0.96584315,598.12,597.4,0.17]
[1741215898823,2.17027562,598.11,597.4,0.17]
[1741215899126,0.96584315,598.1,597.4,0.17]
[1741215899327,0.96584315,598.09,597.4,0.17]
[1741215899522,0.96584315,598.08,597.4,0.17]
[1741215899728,0.96584315,598.07,597.4,0.17]
[1741215900025,0.96584315,598.06,597.4,0.17]
[1741215900225,0.96584315,598.05,597.4,0.17]
[1741215900425,2.17027562,598.04,597.4,0.17]
[1741215900621,0.96584315,598.03,597.4,0.17]
[1741215900831,0.96639148,598.02,597.4,0.17]
[1741215901030,2.17082395,598.01,597.4,0.17]
[1741215901226,0.96639148,598.0,597.4,0.17]
[1741215901527,0.96639148,597.99,597.4,0.17]
[1741215901924,2.17082395,597.99,597.4,0.17]
[1741215902124,0.96639148,597.98,597.4,0.17]
[1741215902524,3.01444484,598.03,597.4,0.17]
[1741215902720,0.96639148,598.02,597.4,0.17]
[1741215902926,1.20443247,598.02,597.4,0.17]
[1741215903132,2.17082395,598.02,597.4,0.17]
[1741215903327,0.96639148,598.01,597.4,0.17]
[1741215903729,2.04803629,598.07,597.4,0.17]
[1741215903730,2.17082395,598.05,597.4,0.17]
[1741215903921,0.96639148,598.04,597.4,0.17]
[1741215904120,0.96639148,598.03,597.4,0.17]
[1741215904322,1.20443247,598.03,597.4,0.17]
[1741215904522,2.17082395,598.03,597.4,0.17]
[1741215904725,0.96639148,598.02,597.4,0.17]
[1741215904927,2.17082395,598.07,597.4,0.17]
[1741215906131,1.20443247,598.06,597.4,0.17]
[1741215906729,0.96639148,598.05,597.4,0.17]
[1741215906923,0.96639148,598.06,597.4,0.17]
[1741215907229,2.17082395,598.05,597.4,0.17]
[1741215907425,0.96639148,598.04,597.4,0.17]
[1741215907833,1.20443247,598.03,597.4,0.17]
[1741215908029,2.17082395,598.03,597.4,0.17]
[1741215908224,0.96639148,598.02,597.4,0.17]
[1741215908531,0.96639148,598.01,597.4,0.17]
[1741215908835,0.96639148,598.0,597.4,0.17]
[1741215909024,0.96639148,597.99,597.4,0.17]
[1741215909226,0.96639148,597.98,597.4,0.17]
[1741215909428,2.17082395,597.97,597.4,0.17]
[1741215909637,0.96639148,597.96,597.4,0.17]
[1741215909831,1.20443247,597.97,597.4,0.17]
[1741215910234,2.51348635,597.98,597.4,0.17]
[1741215910435,0.96714852,597.97,597.4,0.17]
[1741215910628,0.96714852,597.98,597.4,0.17]
[1741215910832,0.96714852,597.97,597.4,0.17]
[1741215911026,0.96714852,597.96,597.4,0.17]
[1741215911232,0.96714852,597.95,597.4,0.17]
[1741215911430,0.96714852,597.94,597.4,0.17]
[1741215911735,0.96714852,597.94,597.24,0.2912012]
[1741215912128,0.96714852,597.93,597.24,0.2912012]
[1741215912436,0.96714852,597.92,597.24,0.2912012]
[1741215912829,1.20443247,597.92,597.24,0.2912012]
[1741215913038,0.96714852,597.91,597.24,0.2912012]
[1741215913234,0.96714852,597.9,597.24,0.2912012]
[1741215913438,0.96714852,597.89,597.11,1.24869901]
[1741215913629,0.96714852,597.88,597.11,1.24869901]
[1741215913832,0.96714852,597.87,597.11,1.24869901]
[1741215914035,0.96714852,597.86,597.11,1.24869901]
[1741215914236,0.96714852,597.85,597.12,0.29124264]
[1741215914535,0.96714852,597.87,597.12,0.29124264]
[1741215914736,1.20443247,597.84,597.12,0.29124264]
[1741215914939,1.20443247,597.84,597.13,0.17]
[1741215915749,1.20443247,597.83,597.13,0.17]
[1741215916337,2.17520616,597.89,597.13,0.17]
[1741215916540,0.96777595,597.88,597.13,0.17]
[1741215916839,0.96777595,597.87,597.13,0.17]
[1741215917041,0.96777595,597.86,597.13,0.17]
[1741215917339,0.96777595,597.85,597.13,0.17]
[1741215917634,1.20743021,597.84,597.13,0.17]
[1741215918036,1.20743021,597.83,597.13,0.17]
[1741215918534,2.17520616,597.83,597.13,0.17]
[1741215918740,0.96777595,597.82,597.13,0.17]
[1741215918947,1.20743021,597.83,597.13,0.17]
[1741215919139,0.96777595,597.85,597.13,0.17]
[1741215919340,0.96777595,597.84,597.13,0.17]
[1741215919541,0.96777595,597.85,597.13,0.17]
[1741215919941,1.20743021,597.84,597.13,0.17]
[1741215920142,2.17527434,597.84,597.13,0.17]
[1741215920339,0.96784413,597.83,597.13,0.17]
[1741215920539,2.17527434,597.82,597.13,0.17]
[1741215920749,0.96784413,597.81,597.13,0.17]
[1741215920950,1.20743021,597.85,597.13,0.17]
[1741215921145,2.17527434,597.85,597.13,0.17]
[1741215921348,0.96784413,597.84,597.13,0.17]
[1741215921552,2.17527434,597.84,597.13,0.17]
[1741215921850,0.96784413,597.83,597.13,0.17]
[1741215922045,2.17527434,597.83,597.13,0.17]
[1741215922250,0.96784413,597.82,597.13,0.17]
[1741215922646,2.17527434,597.86,597.13,0.17]
[1741215923052,1.20743021,597.85,597.13,0.17]
[1741215923840,2.17527434,597.86,597.13,0.17]
[1741215924040,0.96784413,597.85,597.13,0.17]
[1741215924550,1.20743021,597.85,597.13,0.17]
[1741215925645,2.17527434,597.86,597.13,0.17]
[1741215925849,2.17527434,597.85,597.13,0.17]
[1741215926048,0.96784413,597.84,597.13,0.17]
[1741215926250,1.20743021,597.85,597.13,0.17]
[1741215926547,1.20743021,597.84,597.13,0.17]
[1741215926848,2.17527434,597.84,597.13,0.17]
[1741215927155,2.17527434,597.83,597.13,0.17]
[1741215927350,0.96784413,597.82,597.13,0.17]
[1741215927546,0.96784413,597.85,597.13,0.17]
[1741215927746,1.20743021,597.84,597.13,0.17]
[1741215928259,2.17527434,597.85,597.13,0.17]
[1741215928451,0.96784413,597.84,597.13,0.17]
[1741215928646,1.20743021,597.83,597.13,0.17]
[1741215929055,0.96784413,597.84,597.13,0.17]
[1741215929249,1.20743021,597.85,597.13,0.17]
[1741215929448,2.17527434,597.85,597.13,0.17]
[1741215929645,2.17527434,597.84,597.13,0.17]
[1741215929850,0.96784413,597.83,597.13,0.17]
[1741215930049,1.20743021,597.84,597.13,0.17]
[1741215930253,1.20743021,597.83,597.13,0.17]
[1741215930453,2.17527434,597.84,597.13,0.17]
[1741215930653,0.96784413,597.83,597.13,0.17]
[1741215930854,1.20743021,597.84,597.13,0.17]
[1741215931257,0.96784413,597.96,597.13,0.17]
[1741215931451,0.96784413,597.95,597.13,0.17]
[1741215931653,0.96784413,597.94,597.13,0.17]
[1741215931855,0.96784413,597.93,597.13,0.17]
[1741215932056,0.96784413,597.92,597.13,0.17]
[1741215932252,0.96784413,597.91,597.13,0.17]
[1741215932458,0.96784413,597.9,597.13,0.17]
[1741215932658,0.96784413,597.89,597.13,0.17]
[1741215932856,0.96784413,597.88,597.13,0.17]
[1741215933161,1.96284413,597.87,597.13,0.17]
[1741215933365,0.96784413,597.86,597.13,0.17]
[1741215933559,0.96784413,597.85,597.13,0.17]
[1741215933757,0.96784413,597.86,597.13,0.17]
[1741215934061,1.20743021,597.84,597.13,0.17]
[1741215934961,1.20743021,597.85,597.13,0.17]
[1741215935161,1.20743021,597.84,597.13,0.17]
[1741215935968,2.17527434,597.86,597.13,0.17]
[1741215936156,0.96784413,597.85,597.13,0.17]
[1741215936559,2.17527434,597.86,597.13,0.17]
[1741215937064,2.17527434,597.86,597.12,1.24869901]
[1741215937258,0.96784413,597.86,597.12,1.24869901]
[1741215937659,0.96784413,597.85,597.12,1.24869901]
[1741215937866,2.17527434,597.86,597.12,1.24869901]
[1741215938161,0.96784413,597.85,597.12,1.53994408]
[1741215939463,2.17527434,597.86,597.12,1.53994408]
[1741215940065,0.96784413,597.85,597.12,1.24869901]
[1741215940263,0.96784413,597.85,597.13,0.17]
[1741215940467,0.96784413,597.84,597.13,0.17]
[1741215940662,3.72358396,597.85,597.13,0.17]
[1741215940864,2.17527434,597.84,597.13,0.17]
[1741215941057,0.96784413,597.83,597.13,0.17]
[1741215941657,0.96784413,597.84,597.13,0.17]
[1741215942160,1.20743021,597.85,597.13,0.17]
[1741215942766,2.17503308,597.85,597.13,0.17]
[1741215942965,1.20743021,597.85,597.16,1.24869901]
[1741215943168,0.96759382,597.84,597.16,1.24869901]
[1741215943364,0.96759382,597.83,597.16,1.24869901]
[1741215943559,1.20743021,597.83,597.16,1.24869901]
[1741215944064,0.96759382,597.84,597.16,1.24869901]
[1741215944857,2.17502403,597.85,597.19,1.24869901]
[1741215945064,0.96759382,597.84,597.19,1.24869901]
[1741215945262,2.17502403,597.85,597.19,1.24869901]
[1741215945463,0.96750021,597.84,597.19,1.24869901]
[1741215945660,2.17493042,597.85,597.19,1.24869901]
[1741215946366,0.96750021,597.84,597.19,1.24869901]
[1741215946561,2.17493042,597.85,597.19,1.24869901]
[1741215946781,0.96750021,597.84,597.19,1.24869901]
[1741215946966,0.96750021,597.85,597.22,1.24869901]
[1741215948969,0.96750021,597.85,597.25,1.24869901]
[1741215950973,0.96750021,597.86,597.25,1.24869901]
[1741215951176,0.96750021,597.85,597.25,1.24869901]
[1741215951375,2.17493042,597.86,597.25,1.24869901]
[1741215951870,3.72293076,597.86,597.25,1.24869901]
[1741215952175,2.17493042,597.85,597.26,1.24869901]
[1741215952375,0.96750021,597.84,597.26,1.24869901]
[1741215952567,2.17493042,597.85,597.26,1.24869901]
[1741215952775,0.96750021,597.84,597.26,1.24869901]
[1741215952976,2.17493042,597.85,597.26,1.24869901]
[1741215953176,0.96750021,597.84,597.26,1.24869901]
[1741215953377,2.17493042,597.85,597.26,1.24869901]
[1741215954775,2.17493042,597.85,597.19,1.24869901]
[1741215954776,0.96750021,597.84,597.19,1.24869901]
[1741215954974,2.17493042,597.85,597.19,1.24869901]
[1741215955171,0.96750021,597.84,597.19,1.24869901]
[1741215955374,0.96750021,597.85,597.19,1.24869901]
[1741215955970,2.17493042,597.85,597.19,1.24869901]
[1741215956370,0.96750021,597.84,597.19,1.24869901]
[1741215957178,2.17493042,597.85,597.19,1.24869901]
[1741215957681,0.96750021,597.84,597.19,1.24869901]
[1741215957877,0.96750021,597.85,597.18,1.24869901]
[1741215958080,2.17493042,597.85,597.18,1.24869901]
[1741215958283,0.96750021,597.84,597.18,1.24869901]
[1741215959382,0.995,597.87,597.18,1.24869901]
[1741215959677,0.96750021,597.86,597.18,1.24869901]
[1741215960075,0.995,597.87,597.2,1.24869901]
[1741215960274,0.96750021,597.86,597.2,1.24869901]
[1741215960473,0.995,597.87,597.2,1.24869901]
[1741215960872,0.96750021,597.86,597.2,1.24869901]
[1741215961068,0.96750021,597.85,597.2,1.24869901]
[1741215961277,0.96750021,597.84,597.18,0.29121826]
[1741215961577,2.51571572,597.9,597.18,0.29121826]
[1741215961873,0.96750021,597.89,597.18,0.29121826]
[1741215962073,0.96750021,597.88,597.18,0.29121826]
[1741215962270,2.17493042,597.87,597.18,0.29121826]
[1741215962475,0.96750021,597.86,597.18,0.46121826]
[1741215962778,2.17493042,597.85,597.18,0.46121826]
[1741215962978,0.96780769,597.84,597.21,1.25114297]
[1741215963380,0.96780769,597.83,597.21,1.25114297]
[1741215963577,0.96780769,597.93,597.21,1.25114297]
[1741215963777,0.96780769,597.92,597.21,1.25114297]
[1741215963976,2.1752379,597.91,597.21,1.25114297]
[1741215964177,0.96780769,597.9,597.21,1.25114297]
[1741215964373,2.1752379,597.89,597.21,1.25114297]
[1741215964574,0.96780769,597.88,597.21,1.25114297]
[1741215964781,0.96780769,597.87,597.21,1.25114297]
[1741215964982,0.96780769,597.86,597.21,1.25114297]
[1741215965180,2.1752379,597.85,597.21,1.25114297]
[1741215965375,0.96780769,597.84,597.26,1.25114297]
[1741215965577,2.1752379,597.84,597.26,1.25114297]
[1741215965882,0.96780769,597.83,597.26,1.25114297]
[1741215966384,0.96780769,597.82,597.26,1.25114297]
[1741215966577,0.96780769,597.87,597.26,1.25114297]
[1741215966779,0.96863054,597.86,597.26,1.25114297]
[1741215966981,0.96863054,597.85,597.26,1.25114297]
[1741215967180,0.96863054,597.84,597.26,1.25114297]
[1741215967378,2.17606075,597.83,597.26,1.25114297]
[1741215967581,0.96863054,597.82,597.26,1.25114297]
[1741215967781,1.20743021,597.83,597.2,0.29121217]
[1741215967782,0.96863054,597.81,597.2,0.29121217]
[1741215967978,0.96863054,597.8,597.2,0.29121217]
[1741215968181,2.17606075,597.82,597.2,0.29121217]
[1741215968382,0.96863054,597.81,597.2,0.29121217]
[1741215968583,0.96863054,597.8,597.2,0.29121217]
[1741215968784,2.17606075,597.79,597.2,0.29121217]
[1741215969086,0.96863054,597.78,597.2,0.29121217]
[1741215969484,1.20743021,597.85,597.2,0.29121217]
[1741215969485,0.96863054,597.84,597.2,0.29121217]
[1741215969682,0.96932763,597.83,597.2,0.29121217]
[1741215969987,2.17675784,597.82,597.18,1.42114297]
[1741215970183,0.96932763,597.81,597.2,0.29122557]
[1741215970387,1.20743021,597.82,597.2,0.29122557]
[1741215970388,0.96932763,597.8,597.2,0.29122557]
[1741215970587,0.96932763,597.79,597.2,0.29122557]
[1741215970787,0.96932763,597.78,597.2,0.29122557]
[1741215971085,2.17675784,597.77,597.2,0.29122557]
[1741215971287,1.20743021,597.77,597.2,0.29122557]
[1741215971588,0.96961543,597.76,597.2,0.29122557]
[1741215971787,2.52084154,597.87,597.2,0.29122557]
[1741215971981,0.96961543,597.86,597.2,0.29122557]
[1741215972185,2.17704564,597.85,597.2,0.29122557]
[1741215972386,0.96961543,597.84,597.2,0.29122557]
[1741215972587,0.96961543,597.83,597.2,0.29122557]
[1741215972791,2.17704564,597.82,597.2,0.29122557]
[1741215973092,0.96961543,597.81,597.18,1.42114297]
[1741215973291,0.96961543,597.8,597.18,1.42114297]
[1741215973483,0.96961543,597.79,597.18,1.42114297]
[1741215973683,0.96961543,597.78,597.18,1.42114297]
[1741215973886,2.17704564,597.77,597.18,1.42114297]
[1741215974086,0.96961543,597.76,597.18,1.42114297]
[1741215974288,0.96961543,597.75,597.19,0.2912341]
[1741215974487,0.96961543,597.74,597.19,0.2912341]
[1741215974683,0.96961543,597.73,597.19,0.2912341]
[1741215974889,1.20743021,597.73,597.19,0.2912341]
[1741215975082,1.239,597.9,597.19,0.2912341]
[1741215975083,2.75865632,597.84,597.19,0.2912341]